[Event "Championnat du monde jeunes U10F"]
[Date "2024.11.15"]
[White "Isakhanyan, Nare"]
[Black "Bakhshi, Rana"]
[WhiteElo "1540"]
[BlackElo "1727"]
[Round "1.12"]
[Result "1-0"]
[TimeControl "5400+30"]

1. d4 d5 2. c4 e6 3. Nc3 Nf6 4. cxd5 exd5 5. Bg5 c6 6. e3 Bd6 7. Bd3 h6 8. Bh4
O-O 9. Nge2 Re8 10. Qc2 a5 11. h3 Na6 12. a3 Nc7 13. O-O Ne6 14. Rac1 Bd7 15.
Bg3 Qe7 16. Bxd6 Qxd6 17. Na4 Ng5 18. Nc5 Bc8 19. Ng3 Qf8 20. Rfd1 g6 21. h4 Ne6
22. Nxe6 Bxe6 23. b4 Ng4 24. h5 Qg7 25. hxg6 fxg6 26. Bxg6 Rf8 27. Nh5 Qc7 28.
Nf4 axb4 29. axb4 Rf6 30. Bh5 Kh8 31. Bxg4 Bxg4 32. Nxd5 Bxd1 33. Qxd1 Qf7 34.
Nxf6 Qxf6 35. Ra1 Rf8 36. Qc2 Rg8 37. Ra5 Qf3 38. g3 Rf8 39. Ra1 h5 40. Re1 h4
41. Qe2 Qf5 42. e4 Qg5 43. Qe3 Qg6 44. Kg2 Rf7 45. Rh1 Rh7 46. Qf4 Kg8 47. Rxh4
Rf7 48. Rg4 Rxf4 49. Rxg6+ Kf7 50. gxf4 Kxg6 51. f5+ Kf6 52. Kg3 b5 53. Kf4 1-0

[Variant "Standard"]
[Site "Europe Echecs"]

[Event "Championnat du monde jeunes U10F"]
[Date "2024.11.15"]
[White "Peng, Jingyi(GD)"]
[Black "Smilic, Nina"]
[WhiteElo "1720"]
[BlackElo "1540"]
[Round "1.13"]
[Result "1-0"]
[TimeControl "5400+30"]

1. Nf3 {[%clk 1:30:57]} 1... Nf6 {[%clk 1:30:55]} 2. c4 {[%clk 1:31:24]} 2... c5
{[%clk 1:30:08]} 3. Nc3 {[%clk 1:31:36]} 3... d6 {[%clk 1:30:20]} 4. e3 {[%clk
1:29:54]} 4... Nc6 {[%clk 1:30:18]} 5. d4 {[%clk 1:29:40]} 5... cxd4 {[%clk
1:30:39]} 6. exd4 {[%clk 1:29:59]} 6... d5 {[%clk 1:26:56]} 7. c5 {[%clk
1:23:19]} 7... g6 {[%clk 1:17:33]} 8. Bb5 {[%clk 1:17:45]} 8... Bg7 {[%clk
1:12:43]} 9. Ne5 {[%clk 1:04:35]} 9... Bd7 {[%clk 1:06:16]} 10. O-O {[%clk
1:00:48]} 10... O-O {[%clk 1:05:50]} 11. Re1 {[%clk 0:56:06]} 11... e6 {[%clk
1:01:46]} 12. Bxc6 {[%clk 0:36:11]} 12... Bxc6 {[%clk 1:00:45]} 13. Nxc6 {[%clk
0:36:35]} 13... bxc6 {[%clk 1:01:12]} 14. b4 {[%clk 0:34:42]} 14... Rb8 {[%clk
0:59:43]} 15. Rb1 {[%clk 0:35:01]} 15... Qc7 {[%clk 0:53:33]} 16. a4 {[%clk
0:31:09]} 16... a6 {[%clk 0:53:11]} 17. Qd3 {[%clk 0:28:34]} 17... Qa7 {[%clk
0:52:56]} 18. Bf4 {[%clk 0:28:55]} 18... Rb7 {[%clk 0:52:54]} 19. b5 {[%clk
0:25:37]} 19... axb5 {[%clk 0:52:02]} 20. axb5 {[%clk 0:26:01]} 20... cxb5
{[%clk 0:52:04]} 21. Ra1 {[%clk 0:26:05]} 21... Qxa1 {[%clk 0:51:54]} 22. Rxa1
{[%clk 0:26:29]} 22... b4 {[%clk 0:52:16]} 23. Nb5 {[%clk 0:26:44]} 23... Nh5
{[%clk 0:51:35]} 24. Bd6 {[%clk 0:27:08]} 24... Re8 {[%clk 0:51:54]} 25. c6
{[%clk 0:26:36]} 25... Rb6 {[%clk 0:51:38]} 26. c7 {[%clk 0:26:51]} 26... Nf6
27. Rc1 {[%clk 0:24:43]} 27... h6 {[%clk 0:49:31]} 28. c8=Q {[%clk 0:25:03]}
28... Rxc8 {[%clk 0:50:00]} 29. Rxc8+ {[%clk 0:25:26]} 1-0

[Variant "Standard"]
[Site "Europe Echecs"]

[Event "Championnat du monde jeunes U10F"]
[Date "2024.11.15"]
[White "Ritinioti, Sofia"]
[Black "Anistoroaei, Maria"]
[WhiteElo "1534"]
[BlackElo "1715"]
[Round "1.14"]
[Result "0-1"]
[TimeControl "5400+30"]

1. d4 {[%clk 1:30:57]} 1... d5 {[%clk 1:30:52]} 2. Nf3 {[%clk 1:31:20]} 2... Nf6
{[%clk 1:31:14]} 3. Bf4 {[%clk 1:31:41]} 3... c5 {[%clk 1:31:20]} 4. e3 {[%clk
1:31:52]} 4... Nc6 {[%clk 1:31:40]} 5. Nbd2 {[%clk 1:32:01]} 5... e6 {[%clk
1:31:03]} 6. c3 {[%clk 1:32:10]} 6... Be7 {[%clk 1:30:59]} 7. Bd3 {[%clk
1:31:46]} 7... O-O {[%clk 1:31:10]} 8. Ne5 {[%clk 1:30:07]} 8... Bd6 {[%clk
1:26:41]} 9. Ndf3 {[%clk 1:26:59]} 9... Qc7 {[%clk 1:25:40]} 10. Qb1 {[%clk
1:20:41]} 10... a6 {[%clk 1:18:35]} 11. a4 {[%clk 1:18:18]} 11... Bd7 {[%clk
1:10:47]} 12. O-O {[%clk 1:14:30]} 12... c4 {[%clk 0:55:37]} 13. Bc2 {[%clk
1:14:03]} 13... b5 {[%clk 0:51:44]} 14. axb5 {[%clk 1:10:21]} 14... axb5 {[%clk
0:51:53]} 15. Qd1 {[%clk 1:07:20]} 15... b4 {[%clk 0:44:14]} 16. cxb4 {[%clk
1:03:13]} 16... Nxb4 {[%clk 0:44:17]} 17. Qd2 {[%clk 1:01:13]} 17... Nxc2 {[%clk
0:26:58]} 18. Qxc2 {[%clk 1:01:24]} 18... Ne4 {[%clk 0:21:16]} 19. Nxd7 {[%clk
0:55:52]} 19... Qxd7 {[%clk 0:21:32]} 20. Bxd6 {[%clk 0:54:54]} 20... Qxd6
{[%clk 0:21:10]} 21. b3 {[%clk 0:53:55]} 21... c3 {[%clk 0:19:54]} 22. Ne5
{[%clk 0:53:32]} 22... Ra3 {[%clk 0:11:59]} 23. Rfd1 {[%clk 0:46:54]} 23... Rfa8
{[%clk 0:10:57]} 24. Rxa3 {[%clk 0:46:29]} 24... Qxa3 {[%clk 0:10:19]} 25. f3
{[%clk 0:45:43]} 25... Qb2 {[%clk 0:09:01]} 26. Qc1 {[%clk 0:36:49]} 26... Ra2
{[%clk 0:07:19]} 27. Qxb2 {[%clk 0:34:44]} 27... cxb2 {[%clk 0:07:32]} 28. fxe4
{[%clk 0:34:27]} 28... Ra1 {[%clk 0:07:55]} 29. Rxa1 {[%clk 0:33:25]} 29...
bxa1=Q+ {[%clk 0:08:15]} 30. Kf2 {[%clk 0:33:28]} 30... Qb2+ {[%clk 0:08:31]}
31. Kg3 {[%clk 0:33:45]} 31... Qxb3 {[%clk 0:08:39]} 32. Kf4 {[%clk 0:33:50]}
32... f6 {[%clk 0:07:56]} 33. Nf3 {[%clk 0:33:55]} 33... g5+ {[%clk 0:08:08]}
34. Kg3 {[%clk 0:34:10]} 34... dxe4 {[%clk 0:08:22]} 35. Kf2 {[%clk 0:33:30]}
35... exf3 {[%clk 0:08:46]} 36. Kxf3 {[%clk 0:33:45]} 36... Qc2 {[%clk 0:08:54]}
37. Kg3 {[%clk 0:33:28]} 37... Qe2 {[%clk 0:09:10]} 38. h3 {[%clk 0:33:41]}
38... Qxe3+ {[%clk 0:09:31]} 39. Kh2 {[%clk 0:33:58]} 39... Qxd4 {[%clk
0:09:57]} 40. Kg3 {[%clk 0:33:56]} 40... Qf4# {[%clk 0:10:17]} 0-1

[Variant "Standard"]
[Site "Europe Echecs"]

[Event "Championnat du monde jeunes U10F"]
[Date "2024.11.15"]
[White "Tran Hoang Bao An"]
[Black "Aragonda, Sahasra"]
[WhiteElo "1714"]
[BlackElo "1526"]
[Round "1.15"]
[Result "1/2-1/2"]
[TimeControl "5400+30"]

1. d4 {[%clk 1:30:42]} 1... Nf6 {[%clk 1:30:27]} 2. c4 {[%clk 1:28:29]} 2... e6
{[%clk 1:30:45]} 3. Nf3 {[%clk 1:27:24]} 3... Bb4+ {[%clk 1:29:51]} 4. Bd2
{[%clk 1:25:44]} 4... Qe7 {[%clk 1:29:40]} 5. a3 {[%clk 1:24:19]} 5... Bxd2+
{[%clk 1:29:21]} 6. Nbxd2 {[%clk 1:23:54]} 6... b6 {[%clk 1:25:58]} 7. g3 {[%clk
1:21:21]} 7... Bb7 {[%clk 1:26:02]} 8. Bg2 {[%clk 1:19:59]} 8... d6 {[%clk
1:23:06]} 9. O-O {[%clk 1:16:43]} 9... Nbd7 {[%clk 1:20:35]} 10. Re1 {[%clk
1:13:08]} 10... O-O {[%clk 1:18:37]} 11. e4 {[%clk 1:10:39]} 11... e5 {[%clk
1:12:37]} 12. Qc2 {[%clk 1:04:02]} 12... Rad8 {[%clk 1:07:37]} 13. Rad1 {[%clk
1:02:19]} 13... Rfe8 {[%clk 1:01:14]} 14. b4 {[%clk 0:49:14]} 14... c5 {[%clk
0:54:49]} 15. bxc5 {[%clk 0:46:58]} 15... bxc5 {[%clk 0:52:55]} 16. d5 {[%clk
0:39:52]} 16... Rb8 {[%clk 0:44:23]} 17. Nb3 {[%clk 0:35:08]} 17... Nb6 {[%clk
0:35:52]} 18. Na5 {[%clk 0:32:49]} 18... Qc7 {[%clk 0:31:40]} 19. Rb1 {[%clk
0:31:55]} 19... Ba8 {[%clk 0:24:58]} 20. Re3 {[%clk 0:26:48]} 20... Nbxd5 {[%clk
0:22:06]} 21. Rxb8 {[%clk 0:25:30]} 21... Rxb8 {[%clk 0:22:20]} 22. exd5 {[%clk
0:24:25]} 22... Qxa5 {[%clk 0:22:34]} 23. Rb3 {[%clk 0:23:00]} 23... Rb6 {[%clk
0:22:09]} 24. h3 {[%clk 0:15:32]} 24... g6 {[%clk 0:22:11]} 25. Qb2 {[%clk
0:15:31]} 25... Bb7 {[%clk 0:19:38]} 26. Kh2 {[%clk 0:11:59]} 26... Ba6 {[%clk
0:17:23]} 27. Bf1 Ne4 {[%clk 0:15:24]} 28. Bd3 {[%clk 0:09:53]} 28... Nf6 {[%clk
0:14:21]} 29. Rxb6 {[%clk 0:08:21]} 29... axb6 {[%clk 0:13:49]} 30. Be2 {[%clk
0:08:07]} 30... Kg7 {[%clk 0:13:30]} 31. Kg2 {[%clk 0:07:52]} 31... Nd7 {[%clk
0:12:18]} 32. Kf1 {[%clk 0:07:26]} 32... Bc8 {[%clk 0:11:17]} 33. Nd2 {[%clk
0:07:37]} 33... Nf6 {[%clk 0:10:51]} 34. Kg2 {[%clk 0:07:24]} 34... Qa7 {[%clk
0:09:06]} 35. g4 {[%clk 0:07:32]} 35... Qb7 {[%clk 0:07:46]} 36. f4 {[%clk
0:07:47]} 36... Qe7 {[%clk 0:06:35]} 37. g5 {[%clk 0:07:48]} 37... Nd7 {[%clk
0:06:07]} 38. Bg4 {[%clk 0:07:30]} 38... Kg8 {[%clk 0:06:03]} 39. Bxd7 {[%clk
0:07:38]} 39... Bxd7 {[%clk 0:06:23]} 40. Ne4 {[%clk 0:08:00]} 40... exf4 {[%clk
0:04:44]} 41. Nf6+ {[%clk 0:08:21]} 41... Kf8 {[%clk 0:04:04]} 42. Nxh7+ {[%clk
0:08:35]} 42... Kg8 {[%clk 0:04:22]} 43. Nf6+ {[%clk 0:09:00]} 43... Kf8 {[%clk
0:04:31]} 44. Nxd7+ {[%clk 0:08:07]} 44... Qxd7 {[%clk 0:04:51]} 45. Qh8+ {[%clk
0:08:14]} 45... Ke7 {[%clk 0:04:53]} 46. Qf6+ {[%clk 0:08:40]} 46... Kf8 {[%clk
0:04:55]} 47. Qxf4 {[%clk 0:09:05]} 47... Qe7 {[%clk 0:04:29]} 48. Kf3 {[%clk
0:09:22]} 48... Qd7 {[%clk 0:04:37]} 49. Qh4 {[%clk 0:06:56]} 49... Qf5+ {[%clk
0:04:48]} 50. Ke3 {[%clk 0:07:20]} 50... Qe5+ {[%clk 0:04:57]} 51. Kd3 {[%clk
0:07:32]} 51... Qf5+ {[%clk 0:05:14]} 52. Kc3 {[%clk 0:07:35]} 52... Qf3+ {[%clk
0:05:21]} 53. Kb2 {[%clk 0:08:01]} 53... Qe2+ {[%clk 0:05:18]} 54. Kb3 {[%clk
0:08:24]} 54... Qd1+ {[%clk 0:05:21]} 55. Kc3 {[%clk 0:08:24]} 55... Qf3+ {[%clk
0:05:24]} 56. Kd2 {[%clk 0:08:33]} 56... Qg2+ {[%clk 0:05:26]} 57. Ke3 {[%clk
0:08:28]} 57... Qg1+ {[%clk 0:05:35]} 58. Ke2 {[%clk 0:05:14]} 58... Qg2+ {[%clk
0:05:21]} 59. Kd1 {[%clk 0:02:56]} 59... Qf1+ {[%clk 0:05:17]} 60. Kd2 {[%clk
0:02:53]} 60... Qg2+ {[%clk 0:05:16]} 61. Ke3 {[%clk 0:02:35]} 61... Qg1+ {[%clk
0:05:26]} 62. Kf3 {[%clk 0:02:32]} 62... Qf1+ {[%clk 0:05:28]} 63. Kg3 {[%clk
0:02:31]} 63... Qd3+ {[%clk 0:05:01]} 64. Kh2 {[%clk 0:01:50]} 64... Qe2+ {[%clk
0:04:48]} 65. Kg1 {[%clk 0:02:16]} 65... Qe3+ {[%clk 0:04:44]} 66. Kf1 {[%clk
0:02:13]} 66... Qf3+ {[%clk 0:04:41]} 67. Kg1 {[%clk 0:02:27]} 67... Qe3+ {[%clk
0:04:45]} 68. Kg2 {[%clk 0:02:52]} 68... Qe2+ {[%clk 0:04:17]} 69. Kg3 {[%clk
0:02:01]} 69... Qe1+ {[%clk 0:04:18]} 70. Kg4 {[%clk 0:02:24]} 70... Qe4+ {[%clk
0:04:24]} 71. Kg3 {[%clk 0:02:49]} 71... Qe1+ {[%clk 0:04:39]} 1/2-1/2

[Variant "Standard"]
[Site "Europe Echecs"]

[Event "Championnat du monde jeunes U10F"]
[Date "2024.11.15"]
[White "Kocherha, Yelizavieta"]
[Black "Bhavanya Panchumarthi"]
[WhiteElo "1523"]
[BlackElo "1703"]
[Round "1.16"]
[Result "0-1"]
[TimeControl "5400+30"]

1. e4 {[%clk 1:30:58]} 1... c6 {[%clk 1:30:44]} 2. d4 {[%clk 1:31:18]} 2... d5
{[%clk 1:31:05]} 3. e5 {[%clk 1:31:40]} 3... c5 {[%clk 1:31:22]} 4. dxc5 {[%clk
1:31:58]} 4... e6 {[%clk 1:31:30]} 5. Be3 {[%clk 1:32:05]} 5... Nc6 {[%clk
1:30:30]} 6. Bb5 {[%clk 1:32:04]} 6... Bd7 {[%clk 1:29:36]} 7. Bxc6 {[%clk
1:31:57]} 7... Bxc6 {[%clk 1:29:49]} 8. Nf3 {[%clk 1:30:47]} 8... Ne7 {[%clk
1:27:38]} 9. Nc3 {[%clk 1:29:09]} 9... Qc7 {[%clk 1:18:44]} 10. Bd4 {[%clk
1:27:06]} 10... Nf5 {[%clk 1:15:27]} 11. a4 {[%clk 1:26:20]} 11... Nxd4 {[%clk
1:14:13]} 12. Qxd4 {[%clk 1:26:22]} 12... Be7 {[%clk 1:11:00]} 13. b4 {[%clk
1:23:58]} 13... a5 {[%clk 1:10:16]} 14. Nb5 {[%clk 1:22:49]} 14... Bxb5 {[%clk
1:09:10]} 15. axb5 {[%clk 1:22:44]} 15... O-O {[%clk 1:08:37]} 16. c3 {[%clk
1:20:37]} 16... axb4 {[%clk 1:03:58]} 17. Rxa8 {[%clk 1:19:30]} 17... Rxa8
{[%clk 1:03:49]} 18. cxb4 {[%clk 1:19:36]} 18... Qd7 {[%clk 1:01:21]} 19. O-O
{[%clk 1:19:42]} 19... Qxb5 {[%clk 1:00:23]} 20. h3 {[%clk 1:19:00]} 20... g6
{[%clk 0:56:15]} 21. Qd2 {[%clk 1:14:40]} 21... Ra4 {[%clk 0:53:22]} 22. Rb1
{[%clk 1:12:48]} 22... Bxc5 {[%clk 0:52:08]} 23. Qh6 {[%clk 1:11:52]} 23... Bf8
{[%clk 0:50:47]} 24. Qg5 {[%clk 1:10:10]} 24... Rxb4 {[%clk 0:48:58]} 25. Rxb4
{[%clk 1:10:00]} 25... Qxb4 {[%clk 0:49:15]} 26. Qg3 {[%clk 1:07:59]} 26... b5
{[%clk 0:44:44]} 27. Ng5 {[%clk 1:07:40]} 27... Bg7 {[%clk 0:43:49]} 28. Qe3
{[%clk 1:05:19]} 28... Bh6 {[%clk 0:40:22]} 29. Qg3 {[%clk 1:03:43]} 29... Bxg5
{[%clk 0:39:05]} 30. Qxg5 {[%clk 1:03:32]} 30... Qe1+ {[%clk 0:38:56]} 31. Kh2
{[%clk 1:03:21]} 31... Qxf2 {[%clk 0:39:08]} 32. Qc1 {[%clk 1:01:59]} 32... b4
{[%clk 0:39:11]} 33. Kh1 {[%clk 1:01:23]} 33... b3 {[%clk 0:39:21]} 34. Qb1
{[%clk 1:00:48]} 34... b2 {[%clk 0:39:32]} 35. h4 {[%clk 0:59:45]} 35... Qxh4+
{[%clk 0:37:01]} 36. Kg1 {[%clk 1:00:00]} 36... Qd4+ {[%clk 0:37:20]} 37. Kh1
{[%clk 0:59:35]} 37... Qc3 {[%clk 0:36:29]} 38. Qf1 {[%clk 0:59:07]} 38... Qc1
{[%clk 0:36:34]} 39. g4 {[%clk 0:59:11]} 39... Qxf1+ {[%clk 0:35:47]} 40. Kh2
{[%clk 0:59:33]} 40... Qf2+ {[%clk 0:35:52]} 41. Kh3 {[%clk 0:59:43]} 41... b1=Q
{[%clk 0:36:08]} 42. g5 {[%clk 0:59:48]} 42... Qbf5# {[%clk 0:36:29]} 0-1

[Variant "Standard"]
[Site "Europe Echecs"]

[Event "Championnat du monde jeunes U10F"]
[Date "2024.11.15"]
[White "Filippova, Milana"]
[Black "Ivanova, Darina"]
[WhiteElo "1687"]
[BlackElo "1516"]
[Round "1.17"]
[Result "1-0"]
[TimeControl "5400+30"]

1. e4 {[%clk 1:30:59]} 1... c5 {[%clk 1:30:51]} 2. Nf3 {[%clk 1:31:25]} 2... Nc6
{[%clk 1:31:11]} 3. Bb5 {[%clk 1:31:44]} 3... g6 {[%clk 1:31:22]} 4. O-O {[%clk
1:31:49]} 4... Bg7 5. Re1 {[%clk 1:31:24]} 5... d6 {[%clk 1:31:44]} 6. e5 {[%clk
1:30:30]} 6... dxe5 7. Nxe5 {[%clk 1:29:16]} 7... Bd7 {[%clk 1:30:50]} 8. Bxc6
{[%clk 1:28:49]} 8... Bxc6 {[%clk 1:30:59]} 9. Nxc6 {[%clk 1:29:12]} 9... bxc6
{[%clk 1:31:22]} 10. Nc3 Nf6 {[%clk 1:31:19]} 11. d3 {[%clk 1:26:57]} 11... O-O
12. Be3 {[%clk 1:21:07]} 12... Nd5 {[%clk 1:28:50]} 13. Bc1 {[%clk 1:26:57]}
13... Nf6 14. Be3 {[%clk 1:21:07]} 14... Nd5 {[%clk 1:28:50]} 15. Bxc5 {[%clk
1:17:25]} 15... Nxc3 {[%clk 1:28:57]} 16. bxc3 {[%clk 1:17:50]} 16... Bxc3
{[%clk 1:29:02]} 17. Bxe7 {[%clk 1:18:13]} 17... Qb6 {[%clk 1:28:39]} 18. Bxf8
{[%clk 1:17:55]} 18... Bxe1 {[%clk 1:28:51]} 19. Qxe1 {[%clk 1:17:58]} 19...
Rxf8 {[%clk 1:29:06]} 20. Qd2 {[%clk 1:11:48]} 20... Qc5 {[%clk 1:29:49]} 21.
Qe1 {[%clk 1:16:37]} 21... Qb6 {[%clk 1:29:06]} 22. Rb1 {[%clk 1:11:36]} 22...
Qc5 {[%clk 1:29:15]} 23. Qd2 {[%clk 1:11:48]} 23... Qb6 {[%clk 1:29:06]} 24. Qe1
{[%clk 1:11:36]} 24... Qc5 {[%clk 1:29:15]} 25. Qd2 {[%clk 1:11:48]} 25... Re8
{[%clk 1:28:41]} 26. Qe1 {[%clk 1:11:36]} 26... Rf8 {[%clk 1:29:15]} 27. Qd2
{[%clk 1:11:48]} 27... Re8 {[%clk 1:28:41]} 28. Qe1 {[%clk 1:11:36]} 28... Rf8
{[%clk 1:29:15]} 29. Qd2 {[%clk 1:11:48]} 29... Re8 {[%clk 1:28:41]} 30. h3
{[%clk 1:11:16]} 30... Re5 {[%clk 1:28:27]} 31. d4 {[%clk 1:09:45]} 31... Rd5
32. c3 {[%clk 1:07:36]} 32... Qd6 {[%clk 1:28:54]} 33. Qb2 {[%clk 1:02:53]}
33... Rb5 {[%clk 1:29:01]} 34. Qc2 {[%clk 1:03:17]} 34... Ra5 {[%clk 1:28:48]}
35. Qd2 {[%clk 1:07:36]} 35... Rd5 36. Qb2 {[%clk 1:02:53]} 36... Rb5 {[%clk
1:29:01]} 37. Qc2 {[%clk 1:03:17]} 37... Ra5 {[%clk 1:28:48]} 38. Qd2 {[%clk
1:07:36]} 38... Rd5 39. Qb2 {[%clk 1:02:53]} 39... Rb5 {[%clk 1:29:01]} 40. Qc2
{[%clk 1:03:17]} 40... Ra5 {[%clk 1:28:48]} 41. Qd2 {[%clk 1:07:36]} 41... Rd5
42. Qb2 {[%clk 1:02:53]} 42... Rb5 {[%clk 1:29:01]} 43. Qc2 {[%clk 1:03:17]}
43... Ra5 {[%clk 1:28:48]} 44. Rb7 {[%clk 0:59:46]} 44... Rd5 {[%clk 1:28:54]}
45. Rb1 {[%clk 1:02:53]} 45... Ra5 46. Rb7 {[%clk 0:59:46]} 46... a6 {[%clk
1:27:56]} 47. Qe4 {[%clk 0:58:50]} 47... Rf5 {[%clk 1:27:34]} 48. Qc2 {[%clk
0:59:46]} 48... Ra5 49. Qe4 {[%clk 0:58:50]} 49... Rf5 {[%clk 1:27:34]} 50. Qc2
{[%clk 0:59:46]} 50... Ra5 51. Qe4 {[%clk 0:58:50]} 51... Rf5 {[%clk 1:27:34]}
52. Qc2 {[%clk 0:59:46]} 52... Ra5 53. Qe4 {[%clk 0:58:50]} 53... Rf5 {[%clk
1:27:34]} 54. Rb6 {[%clk 0:56:05]} 54... Ra5 {[%clk 1:27:56]} 55. Rb7 {[%clk
0:58:50]} 55... Rf5 {[%clk 1:27:34]} 56. Rb6 {[%clk 0:56:05]} 56... Qa3 {[%clk
1:26:07]} 57. Rxc6 {[%clk 0:55:40]} 57... Qc1+ {[%clk 1:26:25]} 58. Kh2 {[%clk
0:56:00]} 58... Rxf2 {[%clk 1:26:18]} 59. Qe5 {[%clk 0:53:19]} 59... Rf5 {[%clk
1:26:25]} 60. Qe4 {[%clk 0:54:50]} 60... Rf2 61. Qe5 {[%clk 0:53:19]} 61... f6
{[%clk 1:24:46]} 62. Rxf6 {[%clk 0:47:56]} 62... Rxf6 {[%clk 1:24:11]} 63. Qxf6
{[%clk 0:48:18]} 63... Qxc3 {[%clk 1:24:30]} 64. Qe6+ {[%clk 0:48:14]} 64... Kg7
{[%clk 1:24:43]} 65. d5 {[%clk 0:48:15]} 65... Qd2 {[%clk 1:25:04]} 66. Qe5+
{[%clk 0:48:25]} 1-0

[Variant "Standard"]
[Site "Europe Echecs"]

[Event "Championnat du monde jeunes U10F"]
[Date "2024.11.15"]
[White "Poliak, Margarita"]
[Black "Tu, Tiffany"]
[WhiteElo "1514"]
[BlackElo "1687"]
[Round "1.18"]
[Result "1-0"]
[TimeControl "5400+30"]

1. e4 e5 2. Nf3 Nc6 3. Bc4 Nf6 4. d4 exd4 5. e5 Ne4 6. O-O d5 7. Bb5 Bd7 8. Bxc6
bxc6 9. Nxd4 Be7 10. f3 Nc5 11. Nd2 Ne4 12. Nb1 Nc5 13. Nd2 Ne4 14. Nb1 Nc5 15.
Nd2 Ne4 16. Nb1 Nc5 17. Nd2 Ne4 18. Nb1 Nc5 19. Nd2 O-O 20. Kh1 f6 21. exf6 Bxf6
22. N2b3 Be7 23. Nd2 Bf6 24. N2b3 Be7 25. Nd2 Bf6 26. N2b3 Be7 27. Nd2 Bf6 28.
N2b3 Nb7 29. Nd2 Nc5 30. N2b3 Nb7 31. c3 c5 32. Ne2 Bb5 33. Rg1 Bd7 34. Rf1 Bb5
35. Rg1 Bd7 36. Rf1 Bb5 37. Rg1 Be5 38. Rf1 Bf6 39. Rg1 Be5 40. Rf1 Bf6 41. Rg1
Be5 42. Rf1 Bf6 43. Rg1 Be5 44. Rf1 Bf6 45. Rg1 Be5 46. Rf1 Bf6 47. Rg1 Be5 48.
f4 Bxe2 49. Qxe2 Bf6 50. Qd1 Be5 51. Qe2 Bf6 52. Qd1 Be5 53. Qe2 Bxf4 54. Bxf4
Rxf4 55. Qe6+ Kh8 56. Qe2 Kg8 57. Qe6+ Kh8 58. Rgd1 1-0

[Variant "Standard"]
[Site "Europe Echecs"]